[Event "Titled Tuesday Blitz February 22 Late 2022"]
[White "Villegas, Pierre"]
[Black "Thomas, Anysia"]
[WhiteFideId "654183"]
[BlackFideId "670472"]
[WhiteElo "2410"]
[BlackElo "2002"]
[Result "1-0"]
[Round "03"]
[TimeControl "180+1"]
[Date "2022.02.23"]
[WhiteClock "0:00:13"]
[BlackClock "0:00:02"]

1. d4 {[%clk 0:03:00]}  Nf6 {[%clk 0:02:59]} 2. c4 {[%clk 0:02:58]}  g6 {[%clk 0:03:00]} 3. f3 {[%clk 0:02:54]}  Nc6 {[%clk 0:02:53]} 4. Nc3 {[%clk 0:02:53]}  d5 {[%clk 0:02:52]} 5. cxd5 {[%clk 0:02:49]}  Nxd5 {[%clk 0:02:53]} 6. e4 {[%clk 0:02:49]}  Nxc3 {[%clk 0:02:54]} 7. bxc3 {[%clk 0:02:50]}  Bg7 {[%clk 0:02:54]} 8. Be3 {[%clk 0:02:43]}  O-O {[%clk 0:02:54]} 9. Bb5 {[%clk 0:02:43]}  Na5 {[%clk 0:02:51]} 10. Ne2 {[%clk 0:02:36]}  c6 {[%clk 0:02:51]} 11. Bd3 {[%clk 0:02:36]}  c5 {[%clk 0:02:51]} 12. Rc1 {[%clk 0:02:21]}  a6 {[%clk 0:02:39]} 13. d5 {[%clk 0:02:13]}  c4 {[%clk 0:02:37]} 14. Bb1 {[%clk 0:02:09]}  e6 {[%clk 0:02:38]} 15. dxe6 {[%clk 0:01:48]}  Bxe6 {[%clk 0:02:31]} 16. Qxd8 {[%clk 0:01:41]}  Rfxd8 {[%clk 0:02:28]} 17. Bb6 {[%clk 0:01:42]}  Nc6 {[%clk 0:01:52]} 18. Bxd8 {[%clk 0:01:42]}  Rxd8 {[%clk 0:01:52]} 19. Rd1 {[%clk 0:01:42]}  Rc8 {[%clk 0:01:47]} 20. Nd4 {[%clk 0:01:34]}  Nxd4 {[%clk 0:01:36]} 21. cxd4 {[%clk 0:01:35]}  c3 {[%clk 0:01:36]} 22. d5 {[%clk 0:01:25]}  c2 {[%clk 0:00:44]} 23. Bxc2 {[%clk 0:01:24]}  Rxc2 {[%clk 0:00:42]} 24. dxe6 {[%clk 0:01:24]}  Bc3+ {[%clk 0:00:41]} 25. Kf1 {[%clk 0:01:21]}  fxe6 {[%clk 0:00:41]} 26. h4 {[%clk 0:01:02]}  e5 {[%clk 0:00:37]} 27. h5 {[%clk 0:00:57]}  Bd4 {[%clk 0:00:35]} 28. hxg6 {[%clk 0:00:47]}  hxg6 {[%clk 0:00:34]} 29. a4 {[%clk 0:00:30]}  Rf2+ {[%clk 0:00:26]} 30. Ke1 {[%clk 0:00:30]}  Rxg2 {[%clk 0:00:27]} 31. Rb1 {[%clk 0:00:24]}  Ra2 {[%clk 0:00:12]} 32. Rh3 {[%clk 0:00:17]}  Rxa4 {[%clk 0:00:10]} 33. Rxb7 {[%clk 0:00:17]}  Ra1+ {[%clk 0:00:09]} 34. Ke2 {[%clk 0:00:17]}  Ra2+ {[%clk 0:00:09]} 35. Kd3 {[%clk 0:00:16]}  Ra3+ {[%clk 0:00:06]} 36. Kc4 {[%clk 0:00:16]}  Rc3+ {[%clk 0:00:05]} 37. Kd5 {[%clk 0:00:16]}  Rc5+ {[%clk 0:00:04]} 38. Kd6 {[%clk 0:00:15]}  Rc8 {[%clk 0:00:02]} 39. Rg3 {[%clk 0:00:13]} 1-0


[Site "https://www.chess.com"]

[Event "Titled Tuesday Blitz February 22 Late 2022"]
[White "Vine, Elzbieta"]
[Black "Romero Ruscalleda, Josep"]
[WhiteFideId "1119320"]
[BlackFideId "2231859"]
[WhiteElo "1876"]
[BlackElo "2367"]
[Result "0-1"]
[Round "03"]
[TimeControl "180+1"]
[Date "2022.02.23"]
[WhiteClock "0:00:03"]
[BlackClock "0:01:14"]

1. e4 {[%clk 0:02:59]}  g6 {[%clk 0:03:00]} 2. d4 {[%clk 0:02:56]}  Bg7 {[%clk 0:03:00]} 3. Nf3 {[%clk 0:02:50]}  d6 {[%clk 0:03:01]} 4. Nc3 {[%clk 0:02:46]}  a6 {[%clk 0:03:01]} 5. Be3 {[%clk 0:02:44]}  b5 {[%clk 0:03:01]} 6. Qd2 {[%clk 0:02:39]}  Nd7 {[%clk 0:03:00]} 7. Be2 {[%clk 0:02:32]}  Bb7 {[%clk 0:02:59]} 8. h4 {[%clk 0:02:11]}  h5 {[%clk 0:02:55]} 9. a3 {[%clk 0:02:04]}  Ngf6 {[%clk 0:02:54]} 10. e5 {[%clk 0:01:41]}  Ng4 {[%clk 0:02:38]} 11. exd6 {[%clk 0:01:24]}  cxd6 {[%clk 0:02:34]} 12. Bg5 {[%clk 0:01:17]}  Rc8 {[%clk 0:02:30]} 13. O-O {[%clk 0:01:03]}  O-O {[%clk 0:02:24]} 14. Nh2 {[%clk 0:00:55]}  Nxh2 {[%clk 0:02:10]} 15. Kxh2 {[%clk 0:00:54]}  Nf6 {[%clk 0:02:08]} 16. f3 {[%clk 0:00:45]}  Qd7 {[%clk 0:02:02]} 17. Bh6 {[%clk 0:00:43]}  Qf5 {[%clk 0:01:48]} 18. Bxg7 {[%clk 0:00:42]}  Kxg7 {[%clk 0:01:48]} 19. Rae1 {[%clk 0:00:32]}  Nd5 {[%clk 0:01:44]} 20. Bd3 {[%clk 0:00:29]}  Qf6 {[%clk 0:01:42]} 21. Ne2 {[%clk 0:00:15]}  Qxh4+ {[%clk 0:01:40]} 22. Kg1 {[%clk 0:00:13]}  Rfe8 {[%clk 0:01:35]} 23. b3 {[%clk 0:00:12]}  Nf6 {[%clk 0:01:27]} 24. g3 {[%clk 0:00:08]}  Qh3 {[%clk 0:01:26]} 25. Qg5 {[%clk 0:00:05]}  Nh7 {[%clk 0:01:15]} 26. Nf4 {[%clk 0:00:04]}  Nxg5 {[%clk 0:01:14]} 27. Nxh3 {[%clk 0:00:03]}  Nxh3+ {[%clk 0:01:14]} 28. Kg2 {[%clk 0:00:03]}  Ng5 {[%clk 0:01:14]} 0-1


[Site "https://www.chess.com"]

[Event "Titled Tuesday Blitz February 22 Late 2022"]
[White "Weetik, Vjacheslav"]
[Black "Gracia Alvarez, Gerardo Antonio"]
[WhiteFideId "4153472"]
[BlackFideId "5109124"]
[WhiteElo "2469"]
[BlackElo "2139"]
[Result "1-0"]
[Round "03"]
[TimeControl "180+1"]
[Date "2022.02.23"]
[WhiteClock "0:00:07"]
[BlackClock "0:00:09"]

1. e4 {[%clk 0:02:59]}  c5 {[%clk 0:03:00]} 2. Nf3 {[%clk 0:03:00]}  Nc6 {[%clk 0:03:00]} 3. Bb5 {[%clk 0:02:59]}  d6 {[%clk 0:03:01]} 4. Bxc6+ {[%clk 0:02:55]}  bxc6 {[%clk 0:03:00]} 5. e5 {[%clk 0:02:56]}  dxe5 {[%clk 0:03:00]} 6. Nxe5 {[%clk 0:02:55]}  Qd5 {[%clk 0:03:00]} 7. Nf3 {[%clk 0:02:56]}  Qe4+ {[%clk 0:03:00]} 8. Kf1 {[%clk 0:02:56]}  Bg4 {[%clk 0:02:48]} 9. Nc3 {[%clk 0:02:40]}  Bxf3 {[%clk 0:02:46]} 10. Qxf3 {[%clk 0:02:38]}  Qxf3 {[%clk 0:02:45]} 11. gxf3 {[%clk 0:02:39]}  e6 {[%clk 0:02:40]} 12. d3 {[%clk 0:02:36]}  Rb8 {[%clk 0:02:35]} 13. b3 {[%clk 0:02:33]}  Nf6 {[%clk 0:02:31]} 14. Be3 {[%clk 0:02:25]}  Nd7 {[%clk 0:02:22]} 15. Ke2 {[%clk 0:02:18]}  f6 {[%clk 0:02:21]} 16. a4 {[%clk 0:02:12]}  Kf7 {[%clk 0:02:13]} 17. a5 {[%clk 0:02:10]}  Be7 {[%clk 0:02:10]} 18. Ra4 {[%clk 0:02:10]}  f5 {[%clk 0:01:53]} 19. f4 {[%clk 0:02:08]}  Nf6 {[%clk 0:01:41]} 20. Rc4 {[%clk 0:02:04]}  Nd5 {[%clk 0:01:34]} 21. Bxc5 {[%clk 0:01:45]}  Nxf4+ {[%clk 0:01:33]} 22. Kd2 {[%clk 0:01:38]}  Nd5 {[%clk 0:01:30]} 23. Bxe7 {[%clk 0:01:36]}  Nxe7 {[%clk 0:01:29]} 24. Re1 {[%clk 0:01:32]}  Rhd8 {[%clk 0:01:27]} 25. Na4 {[%clk 0:01:29]}  Rd5 {[%clk 0:01:11]} 26. Nc5 {[%clk 0:01:17]}  e5 {[%clk 0:01:11]} 27. b4 {[%clk 0:01:14]}  e4 {[%clk 0:01:05]} 28. Kc3 {[%clk 0:01:11]}  exd3 {[%clk 0:01:04]} 29. Nxd3 {[%clk 0:01:12]}  Rd6 {[%clk 0:00:59]} 30. Rd4 {[%clk 0:00:46]}  Rxd4 {[%clk 0:00:26]} 31. Kxd4 {[%clk 0:00:47]}  Rd8+ {[%clk 0:00:24]} 32. Kc4 {[%clk 0:00:44]}  Kf6 {[%clk 0:00:22]} 33. a6 {[%clk 0:00:37]}  Rd5 {[%clk 0:00:18]} 34. Nc5 {[%clk 0:00:35]}  Rd6 {[%clk 0:00:12]} 35. h4 {[%clk 0:00:31]}  h6 {[%clk 0:00:12]} 36. h5 {[%clk 0:00:31]}  Kf7 {[%clk 0:00:09]} 37. f4 {[%clk 0:00:16]}  Nd5 {[%clk 0:00:09]} 38. Re5 {[%clk 0:00:16]}  Nxf4 {[%clk 0:00:08]} 39. Rxf5+ {[%clk 0:00:15]}  Rf6 {[%clk 0:00:09]} 40. Rxf6+ {[%clk 0:00:13]}  gxf6 {[%clk 0:00:07]} 41. b5 {[%clk 0:00:07]}  cxb5+ {[%clk 0:00:06]} 42. Kxb5 {[%clk 0:00:08]}  Nd5 {[%clk 0:00:03]} 43. Kc6 {[%clk 0:00:08]}  Nb4+ {[%clk 0:00:03]} 44. Kb7 {[%clk 0:00:08]}  f5 {[%clk 0:00:03]} 45. Kxa7 {[%clk 0:00:07]}  Ke7 {[%clk 0:00:03]} 46. Kb7 {[%clk 0:00:07]}  Nxa6 {[%clk 0:00:02]} 47. Kxa6 {[%clk 0:00:08]}  Kd6 {[%clk 0:00:02]} 48. Nd3 {[%clk 0:00:08]}  Kd5 {[%clk 0:00:03]} 49. Kb5 {[%clk 0:00:08]}  Kd4 {[%clk 0:00:03]} 50. Kb4 {[%clk 0:00:08]}  Ke3 {[%clk 0:00:04]} 51. Kc4 {[%clk 0:00:07]}  f4 {[%clk 0:00:03]} 52. Nxf4 {[%clk 0:00:07]}  Kxf4 {[%clk 0:00:04]} 53. Kd5 {[%clk 0:00:07]}  Kg5 {[%clk 0:00:05]} 54. c4 {[%clk 0:00:06]}  Kxh5 {[%clk 0:00:06]} 55. c5 {[%clk 0:00:07]}  Kg4 {[%clk 0:00:06]} 56. c6 {[%clk 0:00:07]}  h5 {[%clk 0:00:07]} 57. c7 {[%clk 0:00:08]}  Kg3 {[%clk 0:00:07]} 58. c8=Q {[%clk 0:00:09]}  h4 {[%clk 0:00:08]} 59. Qg8+ {[%clk 0:00:09]}  Kh2 {[%clk 0:00:08]} 60. Qg4 {[%clk 0:00:06]}  h3 {[%clk 0:00:08]} 61. Ke4 {[%clk 0:00:06]}  Kh1 {[%clk 0:00:09]} 62. Qxh3+ {[%clk 0:00:07]} 1-0


[Site "https://www.chess.com"]

[Event "Titled Tuesday Blitz February 22 Late 2022"]
[White "Willathgamuwa, Kevin"]
[Black "Budrewicz, Krzysztof"]
[WhiteFideId "3214168"]
[BlackFideId "1127950"]
[WhiteElo "1943"]
[BlackElo "2248"]
[Result "0-1"]
[Round "03"]
[TimeControl "180+1"]
[Date "2022.02.23"]
[WhiteClock "0:00:28"]
[BlackClock "0:01:44"]

1. e4 {[%clk 0:03:00]}  g6 {[%clk 0:02:55]} 2. d4 {[%clk 0:02:56]}  Bg7 {[%clk 0:02:55]} 3. Be3 {[%clk 0:02:57]}  d6 {[%clk 0:02:53]} 4. Nc3 {[%clk 0:02:57]}  Nf6 {[%clk 0:02:53]} 5. f3 {[%clk 0:02:57]}  O-O {[%clk 0:02:53]} 6. Qd2 {[%clk 0:02:57]}  e5 {[%clk 0:02:53]} 7. Nge2 {[%clk 0:02:56]}  Nc6 {[%clk 0:02:48]} 8. h4 {[%clk 0:02:55]}  h5 {[%clk 0:02:47]} 9. O-O-O {[%clk 0:02:52]}  Bd7 {[%clk 0:02:47]} 10. Kb1 {[%clk 0:02:47]}  a6 {[%clk 0:02:46]} 11. Nd5 {[%clk 0:02:44]}  Nxd5 {[%clk 0:02:40]} 12. exd5 {[%clk 0:02:45]}  Ne7 {[%clk 0:02:40]} 13. dxe5 {[%clk 0:02:39]}  dxe5 {[%clk 0:02:38]} 14. Bh6 {[%clk 0:02:38]}  Nf5 {[%clk 0:02:37]} 15. Bxg7 {[%clk 0:02:38]}  Nxg7 {[%clk 0:02:33]} 16. Nc3 {[%clk 0:02:29]}  f5 {[%clk 0:02:27]} 17. Bc4 {[%clk 0:02:17]}  b5 {[%clk 0:02:24]} 18. Bb3 {[%clk 0:02:17]}  Kh7 {[%clk 0:02:23]} 19. Qe3 {[%clk 0:02:00]}  Qf6 {[%clk 0:02:23]} 20. Qc5 {[%clk 0:01:59]}  Qd6 {[%clk 0:02:22]} 21. Qe3 {[%clk 0:01:54]}  a5 {[%clk 0:02:16]} 22. a4 {[%clk 0:01:46]}  b4 {[%clk 0:02:15]} 23. Ne2 {[%clk 0:01:41]}  Rfe8 {[%clk 0:02:14]} 24. Rhe1 {[%clk 0:01:26]}  f4 {[%clk 0:02:14]} 25. Qe4 {[%clk 0:01:17]}  Nf5 {[%clk 0:02:10]} 26. Rd2 {[%clk 0:01:07]}  Nxh4 {[%clk 0:02:09]} 27. g3 {[%clk 0:01:05]}  Bf5 {[%clk 0:01:59]} 28. Qc4 {[%clk 0:01:05]}  Nxf3 {[%clk 0:01:58]} 29. Rdd1 {[%clk 0:01:01]}  Nxe1 {[%clk 0:01:58]} 30. Rxe1 {[%clk 0:01:02]}  f3 {[%clk 0:01:55]} 31. Nc1 {[%clk 0:00:57]}  e4 {[%clk 0:01:55]} 32. Qd4 {[%clk 0:00:44]}  Qe5 {[%clk 0:01:49]} 33. Qe3 {[%clk 0:00:41]}  Rad8 {[%clk 0:01:45]} 34. Nd3 {[%clk 0:00:41]}  exd3 {[%clk 0:01:44]} 35. Qxe5 {[%clk 0:00:40]}  Rxe5 {[%clk 0:01:44]} 36. Rxe5 {[%clk 0:00:41]}  d2 {[%clk 0:01:45]} 37. Rxf5 {[%clk 0:00:28]}  d1=Q+ {[%clk 0:01:44]} 0-1


[Site "https://www.chess.com"]

[Event "Titled Tuesday Blitz February 22 Late 2022"]
[White "Wu, Christopher"]
[Black "Gatterer, Florian"]
[WhiteFideId "2040875"]
[BlackFideId "811688"]
[WhiteElo "2632"]
[BlackElo "2218"]
[Result "1-0"]
[Round "03"]
[TimeControl "180+1"]
[Date "2022.02.23"]
[WhiteClock "0:00:07"]
[BlackClock "0:00:01"]

1. d4 {[%clk 0:03:00]}  Nf6 {[%clk 0:02:59]} 2. c4 {[%clk 0:03:01]}  e6 {[%clk 0:02:59]} 3. Nf3 {[%clk 0:03:00]}  d5 {[%clk 0:02:58]} 4. g3 {[%clk 0:03:00]}  Bb4+ {[%clk 0:02:50]} 5. Nbd2 {[%clk 0:03:00]}  O-O {[%clk 0:02:48]} 6. Bg2 {[%clk 0:02:58]}  b6 {[%clk 0:02:47]} 7. O-O {[%clk 0:02:56]}  Bb7 {[%clk 0:02:47]} 8. Ne5 {[%clk 0:02:56]}  Nbd7 {[%clk 0:02:46]} 9. Qc2 {[%clk 0:02:43]}  Bxd2 {[%clk 0:02:45]} 10. Bxd2 {[%clk 0:02:38]}  Nxe5 {[%clk 0:02:44]} 11. dxe5 {[%clk 0:02:39]}  Ne4 {[%clk 0:02:44]} 12. Bf4 {[%clk 0:02:32]}  g5 {[%clk 0:02:40]} 13. Be3 {[%clk 0:02:31]}  Qe7 {[%clk 0:02:26]} 14. Rfd1 {[%clk 0:02:22]}  Rfd8 {[%clk 0:02:19]} 15. Rac1 {[%clk 0:02:14]}  c5 {[%clk 0:01:50]} 16. Kf1 {[%clk 0:01:42]}  d4 {[%clk 0:01:44]} 17. Bxe4 {[%clk 0:01:35]}  dxe3 {[%clk 0:01:43]} 18. fxe3 {[%clk 0:01:34]}  f5 {[%clk 0:01:35]} 19. exf6 {[%clk 0:01:07]}  Qxf6+ {[%clk 0:01:35]} 20. Kg1 {[%clk 0:01:02]}  Qe7 {[%clk 0:01:30]} 21. b3 {[%clk 0:00:59]}  a5 {[%clk 0:01:22]} 22. Rxd8+ {[%clk 0:00:52]}  Rxd8 {[%clk 0:01:21]} 23. Bxb7 {[%clk 0:00:53]}  Qxb7 {[%clk 0:01:19]} 24. Rf1 {[%clk 0:00:53]}  Rf8 {[%clk 0:01:08]} 25. Rxf8+ {[%clk 0:00:44]}  Kxf8 {[%clk 0:01:09]} 26. Qd3 {[%clk 0:00:45]}  Qe7 {[%clk 0:00:39]} 27. Qe4 {[%clk 0:00:40]}  Kg7 {[%clk 0:00:29]} 28. Qe5+ {[%clk 0:00:40]}  Qf6 {[%clk 0:00:29]} 29. Qc7+ {[%clk 0:00:37]}  Kg6 {[%clk 0:00:23]} 30. Qxb6 {[%clk 0:00:33]}  Qe5 {[%clk 0:00:23]} 31. Qc6 {[%clk 0:00:27]}  Qxe3+ {[%clk 0:00:22]} 32. Kf1 {[%clk 0:00:27]}  Qe5 {[%clk 0:00:20]} 33. a4 {[%clk 0:00:22]}  h5 {[%clk 0:00:19]} 34. Qf3 {[%clk 0:00:22]}  Qa1+ {[%clk 0:00:14]} 35. Kf2 {[%clk 0:00:20]}  Qe5 {[%clk 0:00:14]} 36. Qd3+ {[%clk 0:00:19]}  Kf6 {[%clk 0:00:14]} 37. Qd8+ {[%clk 0:00:17]}  Kg6 {[%clk 0:00:13]} 38. Qxa5 {[%clk 0:00:18]}  Qd4+ {[%clk 0:00:12]} 39. Ke1 {[%clk 0:00:17]}  Qa1+ {[%clk 0:00:12]} 40. Kd2 {[%clk 0:00:17]}  Qb2+ {[%clk 0:00:12]} 41. Kd3 {[%clk 0:00:18]}  Qd4+ {[%clk 0:00:12]} 42. Kc2 {[%clk 0:00:18]}  Qe4+ {[%clk 0:00:12]} 43. Kb2 {[%clk 0:00:17]}  Qxe2+ {[%clk 0:00:11]} 44. Ka3 {[%clk 0:00:17]}  Qe3 {[%clk 0:00:09]} 45. Qd8 {[%clk 0:00:07]}  Qg1 {[%clk 0:00:08]} 46. Ka2 {[%clk 0:00:06]}  Qf2+ {[%clk 0:00:06]} 47. Ka3 {[%clk 0:00:06]}  Qg1 {[%clk 0:00:06]} 48. Qe8+ {[%clk 0:00:07]}  Kh6 {[%clk 0:00:06]} 49. Qh8+ {[%clk 0:00:07]}  Kg6 {[%clk 0:00:06]} 50. Qb2 {[%clk 0:00:08]}  Qe3 {[%clk 0:00:04]} 51. a5 {[%clk 0:00:08]}  Qe4 {[%clk 0:00:04]} 52. Qc3 {[%clk 0:00:06]}  Qc6 {[%clk 0:00:03]} 53. b4 {[%clk 0:00:06]}  cxb4+ {[%clk 0:00:02]} 54. Qxb4 {[%clk 0:00:07]}  Qf3+ {[%clk 0:00:02]} 55. Qb3 {[%clk 0:00:07]}  Qc6 {[%clk 0:00:01]} 56. Qd3+ {[%clk 0:00:07]} 1-0


[Site "https://www.chess.com"]

[Event "Titled Tuesday Blitz February 22 Late 2022"]
[White "Yuan, Qingyu"]
[Black "Le Goff, Ronan"]
[WhiteFideId "8609772"]
[BlackFideId "612073"]
[WhiteElo "2359"]
[BlackElo "2276"]
[Result "1-0"]
[Round "03"]
[TimeControl "180+1"]
[Date "2022.02.23"]
[WhiteClock "0:00:50"]
[BlackClock "0:01:29"]

1. Nf3 {[%clk 0:03:00]}  Nf6 {[%clk 0:02:59]} 2. g3 {[%clk 0:03:01]}  d5 {[%clk 0:02:58]} 3. Bg2 {[%clk 0:03:00]}  g6 {[%clk 0:02:59]} 4. b3 {[%clk 0:03:00]}  Bg7 {[%clk 0:02:59]} 5. Bb2 {[%clk 0:03:01]}  O-O {[%clk 0:03:00]} 6. O-O {[%clk 0:03:01]}  c5 {[%clk 0:03:00]} 7. e3 {[%clk 0:02:56]}  Nc6 {[%clk 0:02:58]} 8. d3 {[%clk 0:02:53]}  Re8 {[%clk 0:02:57]} 9. Ne5 {[%clk 0:02:53]}  Nxe5 {[%clk 0:02:56]} 10. Bxe5 {[%clk 0:02:53]}  Be6 {[%clk 0:02:53]} 11. c4 {[%clk 0:02:51]}  Rc8 {[%clk 0:02:40]} 12. Nc3 {[%clk 0:02:46]}  b6 {[%clk 0:02:33]} 13. Rc1 {[%clk 0:02:43]}  dxc4 {[%clk 0:02:26]} 14. dxc4 {[%clk 0:02:36]}  Qxd1 {[%clk 0:02:21]} 15. Rfxd1 {[%clk 0:02:35]}  Bg4 {[%clk 0:02:17]} 16. f3 {[%clk 0:02:17]}  Be6 {[%clk 0:02:15]} 17. Nb5 {[%clk 0:02:17]}  Bh6 {[%clk 0:02:11]} 18. Kf2 {[%clk 0:02:09]}  Nd7 {[%clk 0:02:05]} 19. Bb2 {[%clk 0:01:59]}  a6 {[%clk 0:01:59]} 20. Nc3 {[%clk 0:01:58]}  f6 {[%clk 0:01:57]} 21. Nd5 {[%clk 0:01:54]}  Bxd5 {[%clk 0:01:56]} 22. Rxd5 {[%clk 0:01:51]}  Nb8 {[%clk 0:01:56]} 23. Rcd1 {[%clk 0:01:49]}  e6 {[%clk 0:01:53]} 24. Rd6 {[%clk 0:01:45]}  Kf7 {[%clk 0:01:53]} 25. Rxb6 {[%clk 0:01:44]}  Red8 {[%clk 0:01:52]} 26. Rb7+ {[%clk 0:01:42]}  Kg8 {[%clk 0:01:51]} 27. Rxd8+ {[%clk 0:01:35]}  Rxd8 {[%clk 0:01:52]} 28. Bxf6 {[%clk 0:01:33]}  Rd2+ {[%clk 0:01:50]} 29. Kf1 {[%clk 0:01:13]}  Nc6 {[%clk 0:01:47]} 30. Bh3 {[%clk 0:01:11]}  Bxe3 {[%clk 0:01:43]} 31. Bxe6+ {[%clk 0:01:10]}  Kf8 {[%clk 0:01:43]} 32. Rxh7 {[%clk 0:00:53]}  Rf2+ {[%clk 0:01:29]} 33. Ke1 {[%clk 0:00:50]}  Rxf3 {[%clk 0:01:29]} 34. Rh8# {[%clk 0:00:50]} 1-0


[Site "https://www.chess.com"]

[Event "Titled Tuesday Blitz February 22 Late 2022"]
[White "volunteers1998"]
[Black "Urbina Perez, Juan Antonio"]
[BlackFideId "2217368"]
[WhiteElo "2258"]
[BlackElo "2192"]
[Result "1-0"]
[Round "03"]
[TimeControl "180+1"]
[Date "2022.02.23"]
[WhiteClock "0:00:26"]
[BlackClock "0:00:37"]

1. e4 {[%clk 0:02:59]}  e5 {[%clk 0:02:58]} 2. Nf3 {[%clk 0:02:59]}  Nc6 {[%clk 0:02:58]} 3. Bc4 {[%clk 0:02:58]}  Bc5 {[%clk 0:02:58]} 4. b4 {[%clk 0:02:57]}  Bxb4 {[%clk 0:02:58]} 5. c3 {[%clk 0:02:55]}  Ba5 {[%clk 0:02:58]} 6. d4 {[%clk 0:02:53]}  Nxd4 {[%clk 0:02:59]} 7. Nxe5 {[%clk 0:02:43]}  Ne6 {[%clk 0:02:52]} 8. Nxf7 {[%clk 0:02:42]}  Kxf7 {[%clk 0:02:52]} 9. Bxe6+ {[%clk 0:02:39]}  Kxe6 {[%clk 0:02:50]} 10. Qd5+ {[%clk 0:02:36]}  Ke7 {[%clk 0:02:49]} 11. Qxa5 {[%clk 0:02:33]}  d6 {[%clk 0:02:49]} 12. Bg5+ {[%clk 0:02:30]}  Nf6 {[%clk 0:02:48]} 13. O-O {[%clk 0:02:27]}  Re8 {[%clk 0:02:44]} 14. Nd2 {[%clk 0:02:21]}  c6 {[%clk 0:02:40]} 15. Qxd8+ {[%clk 0:02:18]}  Rxd8 {[%clk 0:02:40]} 16. f4 {[%clk 0:02:11]}  h6 {[%clk 0:02:39]} 17. Bh4 {[%clk 0:02:08]}  Kf7 {[%clk 0:02:35]} 18. e5 {[%clk 0:02:05]}  dxe5 {[%clk 0:02:36]} 19. fxe5 {[%clk 0:02:00]}  Rxd2 {[%clk 0:02:35]} 20. exf6 {[%clk 0:01:59]}  g5 {[%clk 0:02:36]} 21. Bf2 {[%clk 0:01:56]}  Be6 {[%clk 0:02:30]} 22. a4 {[%clk 0:01:52]}  b6 {[%clk 0:02:19]} 23. Rfe1 {[%clk 0:01:47]}  Rb8 {[%clk 0:02:03]} 24. Rad1 {[%clk 0:01:40]}  Rxd1 {[%clk 0:02:02]} 25. Rxd1 {[%clk 0:01:38]}  Bd5 {[%clk 0:01:51]} 26. h3 {[%clk 0:01:34]}  Kxf6 {[%clk 0:01:51]} 27. c4 {[%clk 0:01:31]}  Be6 {[%clk 0:01:39]} 28. a5 {[%clk 0:01:23]}  bxa5 {[%clk 0:01:35]} 29. Bxa7 {[%clk 0:01:21]}  Rb4 {[%clk 0:01:33]} 30. Bd4+ {[%clk 0:01:18]}  Kg6 {[%clk 0:01:08]} 31. Bc3 {[%clk 0:01:15]}  Rxc4 {[%clk 0:01:06]} 32. Bxa5 {[%clk 0:01:15]}  Bd5 {[%clk 0:01:06]} 33. Rd2 {[%clk 0:01:06]}  Rc1+ {[%clk 0:00:59]} 34. Kh2 {[%clk 0:01:04]}  Rc4 {[%clk 0:00:58]} 35. Bc7 {[%clk 0:01:00]}  Kf5 {[%clk 0:00:58]} 36. g4+ {[%clk 0:00:58]}  Ke4 {[%clk 0:00:55]} 37. Bg3 {[%clk 0:00:52]}  Ke3 {[%clk 0:00:55]} 38. Rb2 {[%clk 0:00:49]}  Kd3 {[%clk 0:00:55]} 39. Bd6 {[%clk 0:00:47]}  Rc2+ {[%clk 0:00:54]} 40. Rxc2 {[%clk 0:00:45]}  Kxc2 {[%clk 0:00:55]} 41. Bf8 {[%clk 0:00:43]}  Kd3 {[%clk 0:00:49]} 42. Bxh6 {[%clk 0:00:39]}  c5 {[%clk 0:00:48]} 43. Bxg5 {[%clk 0:00:37]}  c4 {[%clk 0:00:49]} 44. Kg3 {[%clk 0:00:34]}  Ke4 {[%clk 0:00:49]} 45. h4 {[%clk 0:00:33]}  Be6 {[%clk 0:00:49]} 46. Bc1 {[%clk 0:00:32]}  Ke5 {[%clk 0:00:48]} 47. h5 {[%clk 0:00:31]}  Kd6 {[%clk 0:00:48]} 48. Kf4 {[%clk 0:00:30]}  Ke7 {[%clk 0:00:49]} 49. g5 {[%clk 0:00:30]}  Bf7 {[%clk 0:00:47]} 50. g6 {[%clk 0:00:27]}  Be8 {[%clk 0:00:42]} 51. Bb2 {[%clk 0:00:28]}  Kf8 {[%clk 0:00:42]} 52. Kg5 {[%clk 0:00:28]}  Kg8 {[%clk 0:00:39]} 53. h6 {[%clk 0:00:28]}  Bxg6 {[%clk 0:00:36]} 54. Kxg6 {[%clk 0:00:27]}  c3 {[%clk 0:00:37]} 55. Bxc3 {[%clk 0:00:26]} 1-0


[Site "https://www.chess.com"]

[Event "Titled Tuesday Blitz February 22 Late 2022"]
[White "Adury, Anant"]
[Black "Mortazavi, Ali"]
[WhiteFideId "30964687"]
[BlackFideId "401323"]
[WhiteElo "2309"]
[BlackElo "2339"]
[Result "0-1"]
[Round "04"]
[TimeControl "180+1"]
[Date "2022.02.23"]
[WhiteClock "0:00:42"]
[BlackClock "0:01:19"]

1. d4 {[%clk 0:03:00]}  Nf6 {[%clk 0:02:58]} 2. c4 {[%clk 0:02:55]}  g6 {[%clk 0:02:59]} 3. Nc3 {[%clk 0:02:55]}  Bg7 {[%clk 0:03:00]} 4. e4 {[%clk 0:02:53]}  O-O {[%clk 0:03:00]} 5. h3 {[%clk 0:02:54]}  d6 {[%clk 0:03:01]} 6. Bg5 {[%clk 0:02:55]}  c5 {[%clk 0:03:01]} 7. d5 {[%clk 0:02:55]}  b5 {[%clk 0:03:01]} 8. cxb5 {[%clk 0:02:53]}  a6 {[%clk 0:03:01]} 9. bxa6 {[%clk 0:02:53]}  Qa5 {[%clk 0:03:00]} 10. Bd3 {[%clk 0:02:52]}  Bxa6 {[%clk 0:02:59]} 11. Ne2 {[%clk 0:02:53]}  Nbd7 {[%clk 0:02:57]} 12. O-O {[%clk 0:02:53]}  Ne5 {[%clk 0:02:57]} 13. Bxa6 {[%clk 0:02:40]}  Qxa6 {[%clk 0:02:58]} 14. b3 {[%clk 0:02:36]}  Rfb8 {[%clk 0:02:51]} 15. f4 {[%clk 0:02:35]}  Nd3 {[%clk 0:02:44]} 16. Qd2 {[%clk 0:02:31]}  c4 {[%clk 0:02:34]} 17. Rad1 {[%clk 0:02:06]}  Qb6+ {[%clk 0:02:13]} 18. Kh2 {[%clk 0:02:06]}  Nf2 {[%clk 0:02:08]} 19. e5 {[%clk 0:01:42]}  N6e4 {[%clk 0:01:56]} 20. Nxe4 {[%clk 0:01:27]}  Nxe4 {[%clk 0:01:55]} 21. Qd4 {[%clk 0:01:28]}  Nxg5 {[%clk 0:01:52]} 22. Qxb6 {[%clk 0:01:21]}  Rxb6 {[%clk 0:01:52]} 23. fxg5 {[%clk 0:01:21]}  Bxe5+ {[%clk 0:01:52]} 24. Kh1 {[%clk 0:01:21]}  Rxa2 {[%clk 0:01:52]} 25. Nc1 {[%clk 0:01:18]}  cxb3 {[%clk 0:01:47]} 26. Nxa2 {[%clk 0:01:17]}  bxa2 {[%clk 0:01:47]} 27. Kg1 {[%clk 0:01:04]}  Rb5 {[%clk 0:01:31]} 28. Kf2 {[%clk 0:01:00]}  a1=Q {[%clk 0:01:30]} 29. Rxa1 {[%clk 0:01:00]}  Bxa1 {[%clk 0:01:31]} 30. Rxa1 {[%clk 0:01:00]}  Rxd5 {[%clk 0:01:32]} 31. h4 {[%clk 0:01:00]}  Rd3 {[%clk 0:01:31]} 32. Ra7 {[%clk 0:00:59]}  e6 {[%clk 0:01:29]} 33. g4 {[%clk 0:00:56]}  Kg7 {[%clk 0:01:29]} 34. h5 {[%clk 0:00:56]}  gxh5 {[%clk 0:01:27]} 35. gxh5 {[%clk 0:00:57]}  Rh3 {[%clk 0:01:25]} 36. h6+ {[%clk 0:00:44]}  Kg6 {[%clk 0:01:25]} 37. Ra8 {[%clk 0:00:43]}  Kxg5 {[%clk 0:01:22]} 38. Rf8 {[%clk 0:00:42]}  Rxh6 {[%clk 0:01:19]} 39. Rxf7 {[%clk 0:00:42]}  Rf6+ {[%clk 0:01:19]} 0-1


[Site "https://www.chess.com"]